Cogmind - Beta 13 @@@ ROGUE MODE // 2024.04.15 @ 00:53:38 Player: A Moose Result: Destroyed by Y-45 Defender with Heavy Assault Rifle Performance ------------- Evolutions (1) 500 Regions Visited (3) 600 Robots Destroyed (38) 190 Value Destroyed (791) 791 Prototype IDs (1) 20 Alien Tech Used (0) 0 Bonus (0) 0 TOTAL SCORE: 2101 Bonus ------- None Cogmind --------- Core Integrity 0/400 Matter 300/300 Energy 265/265 System Corruption 0% Temperature Cool (0) Movement Rolling (110) Ox2 Location -9/Materials Parts ------- > --- POWER (1) -------- Improved Ion Engine > --- PROPULSION (2) --- Wheel > --- UTILITY (4) ------ Large Storage Unit Signal Interpreter > --- WEAPON (2) ------- Beam Rifle > --- INVENTORY (15) --- Improved Ion Engine Improved Ion Engine Light Nuclear Core Compact Wheel Medium Matter Pod (60) Light Armor Plating Small Laser Mini Grenade Launcher Datajack Mining Laser Peak State ------------ > --- POWER ------------ Improved Ion Engine > --- PROPULSION ------- Wheel Compact Wheel > --- UTILITY ---------- Improved Heat Sink Large Storage Unit Signal Interpreter > --- WEAPON ----------- Beam Rifle Beam Rifle > --- INVENTORY -------- Improved Ion Engine Improved Ion Engine Light Nuclear Core Wheel Wheel Compact Wheel Medium Matter Pod Improved EM Shotgun Beam Rifle Beam Rifle Rocket Launcher Mini Grenade Launcher Datajack Mining Laser [Rating: 15] Favorites ----------- Power Improved Ion Engine Engine Improved Ion Engine Propulsion Compact Wheel Wheel Compact Wheel Utility Large Storage Unit Device Improved Heat Sink Storage Large Storage Unit Processor Signal Interpreter Weapon Beam Rifle Energy Gun Beam Rifle Ballistic Gun Assault Rifle Launcher Mini Grenade Launcher Build | -11 -10 -10 -9 ------- Run | Yrd Mat Min Mat Slots Evolved 2 | . . . 2 Power . | . . . . Propulsion . | . . . . Utility 2 | . . . 2 Weapon . | . . . . Parts Attached 32 | 7 13 1 11 Power 4 | 1 1 1 1 Engine 4 | 1 1 1 1 Core . | . . . . Reactor . | . . . . Propulsion 8 | 2 2 . 4 Treads . | . . . . Leg . | . . . . Wheel 8 | 2 2 . 4 Hover . | . . . . Flight . | . . . . Utility 5 | 1 3 . 1 Device 1 | . . . 1 Storage 2 | 1 1 . . Processor 2 | . 2 . . Hackware . | . . . . Protection . | . . . . Artifact . | . . . . Weapon 15 | 3 7 . 5 Energy Gun 11 | 2 6 . 3 Energy Cannon . | . . . . Ballistic Gun 1 | 1 . . . Ballistic Cannon . | . . . . Launcher 3 | . 1 . 2 Special Weapon . | . . . . Impact Weapon . | . . . . Slashing Weapon . | . . . . Piercing Weapon . | . . . . Special Melee Weapon . | . . . . Unidentified Prototypes 1 | . 1 . . Parts Lost 16 | . 3 1 12 Power 3 | . 1 1 1 Propulsion 6 | . 1 . 5 Utility 1 | . . . 1 Weapon 6 | . 1 . 5 Highest Loss Streak 11 | . 1 1 11 To Critical Strikes . | . . . . Average Slot Usage (%) 81 | . 79 100 66 Engine 11 | . 11 14 9 Wheel 20 | . 21 28 10 Device 1 | . . . 4 Storage 13 | . 14 14 11 Processor 7 | . 2 14 11 Energy Gun 25 | . 27 28 19 Naked Turns . | . . . . Heaviest Build 34 | 12 29 33 34 Greatest Support 26 | 26 26 26 26 Greatest Overweight (x) 10 | . 1 1 10 Average Overweight (x) 1 | . . . 2 Largest Inventory Capacity 15 | 8 15 15 15 Average Capacity 14 | 7 14 15 15 Most Carried 15 | 5 15 15 14 Average Carried 10 | 2 10 14 10 Final Capacity 15 | 8 15 15 15 Final Carried 15 | 4 15 15 10 Class Distribution -------------------- 100% | Mutant Dominant Class ---------------- Mutant | -10/Materials Mutant | -10/Mines Mutant | -9/Materials Resources | -11 -10 -10 -9 ----------- Run | Yrd Mat Min Mat Matter Collected 610 | 262 114 111 123 Remotely . | . . . . Salvage Created 1205 | 79 483 136 507 Parts 76 | 2 39 12 23 Haulers Intercepted 2 | . 1 . 1 Recyclers Shooed . | . . . . Parts Field Recycled . | . . . . Retrieved Matter . | . . . . Parts Self-Destructed . | . . . . Prevented . | . . . . Kills | -11 -10 -10 -9 ------- Run | Yrd Mat Min Mat Combat Hostiles Destroyed 24 | . 10 5 9 Guns 14 | . 7 5 2 AOE 10 | . 3 . 7 Classes Destroyed 9 | 1 6 . 2 Worker 3 | . 1 . 2 Builder 3 | . 1 . 2 Hauler 2 | . 1 . 1 Recycler 2 | 1 . . 1 Watcher 4 | . 3 . 1 Swarmer 8 | . 5 3 . Grunt 14 | . 5 2 7 Brawler 1 | . . . 1 Sentry 1 | . . . 1 Best Kill Streak 11 | 1 5 3 11 Combat Bots Only 9 | . 3 3 9 Max Kills in Single Turn 3 | 1 2 1 3 Gunslinging 1 | . 1 . . Exploded 2 | . 1 . 2 Melee . | . . . . Uniques/NPCs Destroyed . | . . . . Combat | -11 -10 -10 -9 -------- Run | Yrd Mat Min Mat Hostile Shots Fired 185 | . 56 14 115 Missed 45 | . 16 2 27 Damage Taken 1724 | . 398 132 1194 Core 513 | . 80 20 413 Absorbed by Shields . | . . . . Core Remaining (%) 80 | 100 . 60 . Volleys Fired 74 | 4 33 8 29 Largest 2 | 2 2 2 2 Hottest 112 | 70 112 112 112 Shots Fired 142 | 8 66 16 52 Gun 134 | 8 64 16 46 Cannon . | . . . . Launcher 8 | . 2 . 6 Special . | . . . . Kinetic 4 | 4 . . . Thermal 85 | 4 20 16 45 Explosive 8 | . 2 . 6 Electromagnetic 45 | . 44 . 1 Robot Hit Streak 7 | 5 7 7 5 Robot Miss Streak 6 | 3 6 1 5 Penetration Max . | . . . . Secondary Targets 3 | . 3 . . Max Gunslinging Chain 1 | . 1 . . Shots Hit Robots 79 | 5 37 12 25 Core Hits 59 | 2 23 7 27 Critical Kills . | . . . . Critical Parts Destroyed . | . . . . Critical Strikes 3 | . . 1 2 Burn 3 | . . 1 2 Melee Attacks . | . . . . Impact . | . . . . Slashing . | . . . . Piercing . | . . . . Sneak Attacks . | . . . . Combat Hostiles . | . . . . Follow-up Attacks . | . . . . Damage Inflicted 2152 | 63 780 174 1135 Guns 1182 | 63 574 174 371 Cannons . | . . . . Explosions 970 | . 206 . 764 Melee . | . . . . Ramming . | . . . . Kinetic 26 | 26 . . . Thermal 737 | 37 178 174 348 Explosive 863 | . 99 . 764 Electromagnetic 526 | . 503 . 23 Impact . | . . . . Slashing . | . . . . Piercing . | . . . . Highest Corruption . | . . . . Average Corruption . | . . . . Corruption Purged . | . . . . Corruption Blocked . | . . . . Overload Shots . | . . . . Overflow Damage . | . . . . Projectiles . | . . . . Explosions . | . . . . Melee . | . . . . Knockbacks . | . . . . Impact . | . . . . Kinetic . | . . . . Secondary . | . . . . Self-Inflicted Damage 64 | . 34 . 30 Shots 3 | . 1 . 2 Rammed . | . . . . Targets Rammed . | . . . . Kicked . | . . . . Crushed . | . . . . Highest Temperature 284 | 18 228 216 284 Average Temperature 73 | 8 59 97 87 Received Heat Transfer 672 | . 84 27 561 Siege Activations . | . . . . Robots Corrupted . | . . . . Combat Hostiles . | . . . . Parts Fried 5 | . 5 . . Impact Corruptions . | . . . . Robots Melted . | . . . . Combat Hostiles . | . . . . Parts Melted 2 | . . . 2 Heat Transferred 2050 | 111 385 518 1036 Parts Sabotaged . | . . . . Parts Stolen . | . . . . Parts Stripped . | . . . . Power Chain Reactions 3 | . 3 . . Alert | -11 -10 -10 -9 ------- Run | Yrd Mat Min Mat Peak Influence 354 | 5 330 165 354 Initial 64 | . 3 55 64 Average 163 | 2 162 156 218 Maximum Alert Level 1 | . 1 . 1 Low Security (%) 72 | 100 64 100 46 Level 1 27 | . 35 . 53 Level 2 . | . . . . Level 3 . | . . . . Level 4 . | . . . . Level 5 . | . . . . High Security . | . . . . Max Security . | . . . . Squads Dispatched 5 | . 3 . 2 Investigation 1 | . 1 . . Extermination . | . . . . Reinforcement 4 | . 2 . 2 Assault . | . . . . Garrison . | . . . . Intercept . | . . . . Searches Triggered . | . . . . Construction Impeded 1 | . . . 1 Haulers Reinforced . | . . . . Active Scanning Responses . | . . . . Cargo Convoy Interrupts . | . . . . Stealth | -11 -10 -10 -9 --------- Run | Yrd Mat Min Mat Distress Signals 3 | . 2 . 1 Communications Jammed . | . . . . Distress Signals . | . . . . Times Spotted 41 | . 19 4 18 Peak Tracking Total 11 | . 5 3 11 Tactical Retreats 1 | . . . 1 Traps | -11 -10 -10 -9 ------- Run | Yrd Mat Min Mat Traps Triggered . | . . . . Indirectly . | . . . . Trap Hack Attempts . | . . . . Triggered . | . . . . Disarmed . | . . . . Reprogrammed . | . . . . Reused . | . . . . Traps Extracted . | . . . . Installed . | . . . . Triggered . | . . . . Machines | -11 -10 -10 -9 ---------- Run | Yrd Mat Min Mat Machines Disabled 3 | . 2 . 1 Max in Single Turn 1 | . 1 . 1 Machines Repaired . | . . . . Machines Dismantled . | . . . . Machines Sabotaged . | . . . . Overloaded Fab Kills . | . . . . Hacking | -11 -10 -10 -9 --------- Run | Yrd Mat Min Mat Machines Accessed 5 | . 3 . 2 Terminals 5 | . 3 . 2 Fabricators . | . . . . Repair Stations . | . . . . Recycling Units . | . . . . Scanalyzers . | . . . . Garrison Access . | . . . . Total Hacks 12 | . 9 . 3 Successful 6 | . 5 . 1 Failed 6 | . 4 . 2 Catastrophic 1 | . 1 . . Database Lockouts . | . . . . Manual . | . . . . Terminals 12 | . 9 . 3 Fabricators . | . . . . Repair Stations . | . . . . Recycling Units . | . . . . Scanalyzers . | . . . . Garrison Access . | . . . . Terminal Hacks 6 | . 5 . 1 Emergency Access Points 2 | . 1 . 1 Alert Level 2 | . 2 . . Locate Traps 2 | . 2 . . Fabricator Hacks . | . . . . Repair Station Hacks . | . . . . Recycling Unit Hacks . | . . . . Scanalyzer . | . . . . Garrison Access Hacks . | . . . . Unauthorized Hacks . | . . . . Terminals . | . . . . Fabricators . | . . . . Repair Stations . | . . . . Recycling Units . | . . . . Scanalyzers . | . . . . Garrison Access . | . . . . Data Cores Recovered . | . . . . Used . | . . . . Hacking Detections 5 | . 3 . 2 Full Trace Events 1 | . 1 . . Feedback Events . | . . . . Feedback Blocked . | . . . . Robot Schematics Acquired . | . . . . Robots Built . | . . . . Authchips . | . . . . Time . | . . . . Total Robot Build Rating . | . . . . Part Schematics Acquired . | . . . . Parts Built . | . . . . Authchips . | . . . . Time . | . . . . Total Part Build Rating . | . . . . Parts Repaired . | . . . . Time . | . . . . Parts Recycled . | . . . . Recycled Matter . | . . . . Retrieved Matter . | . . . . Retrieved Components . | . . . . Parts Scanalyzed . | . . . . Part Schematics Acquired . | . . . . Parts Damaged . | . . . . Bothacking | -11 -10 -10 -9 ------------ Run | Yrd Mat Min Mat Used RIF Installer . | . . . . Robots Hacked . | . . . . Non-combat . | . . . . Combat . | . . . . Robot Hacks Applied . | . . . . Relay Couplers Released . | . . . . Fabnet Peak Effective % . | . . . . Robots Rewired . | . . . . Allies Hacked . | . . . . Hacks Repelled . | . . . . Allies | -11 -10 -10 -9 -------- Run | Yrd Mat Min Mat Total Allies . | . . . . Largest Group . | . . . . Highest-Rated Group . | . . . . Highest-Rated Ally . | . . . . Total Orders . | . . . . Ally Attacks . | . . . . Total Damage . | . . . . Kills . | . . . . Allies Corrupted . | . . . . Allies Melted . | . . . . Intel | -11 -10 -10 -9 ------- Run | Yrd Mat Min Mat Robot Analysis Total . | . . . . Derelict Logs Recovered 1 | . . 1 . Drone Launches . | . . . . Drone Recoveries . | . . . . Exploration | -11 -10 -10 -9 ------------- Run | Yrd Mat Min Mat Turns Passed 1159 | 73 497 312 277 Spaces Moved 758 | 51 326 266 115 Core 19 | 7 . . 12 Treads . | . . . . Legs . | . . . . Wheels 739 | 44 326 266 103 Hover . | . . . . Flight . | . . . . Fastest Speed 50 | 50 90 90 90 Average Speed 112 | 84 107 104 153 Slowest Speed 550 | 90 115 105 550 Overloaded Moves . | . . . . Propulsion Burnouts . | . . . . Robots Hopped . | . . . . Cave-ins Triggered . | . . . . Exploration Rate (%) 38 | 5 62 66 19 Regions Visited 3 Branch Regions 1 Pre-discovered Areas . | . . . . Known Exits Taken 2 | . 1 1 . Unknown Exits Taken 1 | 1 . . . Scrap Searched 1 | . . 1 . Spaces Dug 12 | . . . 12 Terrain Destroyed 63 | . 8 . 55 Melee . | . . . . Projectile . | . . . . AOE 63 | . 8 . 55 Terrain Rammed . | . . . . Walls Destroyed . | . . . . Machines Disabled . | . . . . Actions | -11 -10 -10 -9 --------- Run | Yrd Mat Min Mat Total 927 | 73 404 286 164 Wait 10 | . 7 3 . Move 755 | 50 325 265 115 Hop . | . . . . Pick Up 43 | 11 20 5 7 Fast Attach 1 | . 1 . . Attach 21 | 6 4 1 10 Detach . | . . . . Swap 10 | 1 8 . 1 Drop 13 | 1 6 4 2 Fire 74 | 4 33 8 29 Melee . | . . . . Ram . | . . . . Kick . | . . . . Crush . | . . . . Escape Stasis . | . . . . Rewire . | . . . . Trap . | . . . . Miscellaneous . | . . . . Route ------- -11/Scrapyard -10/Materials (discovered 2 exits: *Mat / *Min) -10/Mines -9/Materials (discovered 1 exit: Min) History --------- Turn | Location | Event 15 | -11/Scrapyard | Discovered new exit (range 15) 74 | -11/Scrapyard | Entered Materials 300 | -10/Materials | Build established: Mutant 334 | -10/Materials | Discovered new exit (range 3) 548 | -10/Materials | Discovered new exit (range 16) 562 | -10/Materials | Identified exit to Mines 571 | -10/Materials | Entered Mines 704 | -10/Mines | Received a Rocket Launcher from a helpful Derelict 858 | -10/Mines | Discovered new exit (range 6) 864 | -10/Mines | Identified exit to Materials 883 | -10/Mines | Entered Materials 883 | -9/Materials | Evolved 2 slots: Utility x2 884 | -9/Materials | Identified exit to Mines 1007 | -9/Materials | Core integrity fell below 50% 1018 | -9/Materials | Core integrity fell below 20% 1042 | -9/Materials | Lost 11 parts (1p5n1u4w) 1056 | -9/Materials | Destroyed 9 combat bots 1160 | -9/Materials | Destroyed by Y-45 Defender with Heavy Assault Rifle Last Messages --------------- R-06 Scavenger destroyed. W-16 Scout sends out distress signal. Critical hit (Burn: +37). U-05 Engineer lays Concrete. Acquired Imp. Ion Engine. U-05 Engineer lays Concrete. Acquired Com. Wheel. U-05 Engineer lays Concrete. Acquired 27 matter. U-05 Engineer lays Concrete. U-05 Engineer builds a Wall. Beam Rifle destroyed. Acquired Sml. Laser. U-05 Engineer builds a Wall. Acquired 15 matter. U-05 Engineer lays Concrete. U-05 Engineer builds a Wall. U-05 Engineer lays Concrete. The unstable cave ceiling collapses. U-05 Engineer builds a Wall. Map ----- +----------------------------------------------------+ | | | | | | | | | | | ?????????????????????????????????????????????????? | | ?????????????????????????????????????????????????? | | ?????????????????????????????????????????????????? | | ?????????????????????????????????????????????????? | | ?????????????????????????????????????????????????? | | ?????????????????????????###?????????????????????? | | ????????????????????????? +????????????????????? | | ????????????????????????? #????????????????????? | | ????????????????????????? +????????????????????? | | ????????????????????????? #????????????????????? | | ????????????????????????? #????????????????????? | | ????????????????????????? #????####????????????? | | ????????????????????????# #??? ????????????? | | ????????????????????????+ #?? ?????????????? | | ???????????>????????????# #?? ???????????????? | | ????????????????????????# #? ????????????????? | | ????????????????????????# # ?????????????????? | | ????????????????????????# # ??????????????????? | | ????????????????????????# + ???????????????????? | | ????????????????????????# t#????????????????????? | | ????????????????????????#@ #????????????????????? | | ????????????????????????# #????????????????????? | | ????????????????????????# #????????????????????? | | ????????????????????????# #????????????????????? | | ????????????????????????# #????????????????????? | | ???????????????????????##Y ##???????????????????? | | ?????????????### ###?### Y ######??????????????? | | ?????????????# # %! #??????????????? | | ?????????????# "" " % ! +??????????????? | | ?????????????# "T #*#at!*! #??????????????? | | ?????????????+ "" ?# #u=u%|#### #??????????????? | | ?????????????# ??# ###u## #???#??????????????? | | ?????????????##?##???# ##%# #??????????????????? | | ?????????????????????## ##%# ##??????????????????? | | ?????????????????#######!# # #???????????????????? | | ????????????????# # # ""????????????????? | | ????????????????# """ # ### """ ?????????????? | | ????????????????# """ # # "" ?????????????? | | ????????????????# """ # +? ??????????????? | | ????????????????# # % #?""" ?????????????? | | ????????????????# """ + #??"" T????????????? | | ????????????????# """ # #???? "????????????? | | ????????????????? """ # %!#???????????????????? | | ????????????????? ###+########????????? | | ????????????????##### ???????? | +----------------------------------------------------+ Best States ------------- Heat Dissipation 42 Energy Generation 12 Energy Capacity 265 Matter Stores 300 Matter Capacity 300 Sight Range 18 Terrain Scan Density 10 Evasion (%) 50 Item Schematics ----------------- None Robot Schematics ------------------ None Fabricated ------------ Nothing Alien Tech Used ----------------- None Achievements -------------- None Challenges ------------ None Game ------ Seed BombThrowingCharge Manual? 0 Play Time 00:17:36 Cumulative 41.6 hours Start 2024.04.15 @ 00:40:17 End 2024.04.15 @ 00:53:38 Sessions 1 Manual Loads 0 Difficulty Rogue Special Mode None Game No. 45 Rogue 36 Adventurer 9 Explorer 0 Win Type - Total 0 Types 0/0/0/0/0/0/0/0/0 Lore% 30 Gallery% 43 Achievement% 35 Wizard Run 0 Options --------- Layout 1 ASCII 0 Keyboard 0 Movement Numpad Keybinds 0 Fullscreen 1 Font 24/Smallcaps Map View 50x35 Zoom Use 0% Tactical HUD 0 Map Filters NONE Filters NONE Steam 1 RUN: 593b3239-bc80-4801-b8f1-6e9867fe9b57